[Event "Chessity Nationale Pupillendag 2019 - Groep F"]
[Site "Meppel, Netherlands"]
[Date "2019.06.29"]
[Round "7.2"]
[White "Vijver, Jonathan"]
[Black "Van Rijn, Vincent"]
[Result "0-1"]
[TimeControl "15 min + 10 sec"]
[WhiteElo "948"]
[BlackElo "779"]

1. e4 {[%clk 00:15:18]} e5 {[%clk 00:15:20]} 2. Nf3 {[%clk 00:15:27]} Nf6
{[%clk 00:15:39]} {[%emt 00:00:04]} 3. Nxe5 {[%clk 00:15:34]} Qe7 {[%clk
00:15:39]} 4. d4 {[%clk 00:15:34]} d6 {[%clk 00:15:57]} {[%emt 00:00:03]} 5.
Nf3 {[%clk 00:15:50]} Nxe4 {[%clk 00:15:57]} {[%emt 00:00:03]} 6. Qe2 {[%clk
00:15:59]} d5 {[%clk 00:16:03]} {[%emt 00:00:05]} 7. Bf4 {[%emt 00:00:27]} Be6
{[%clk 00:15:39]} {[%emt 00:00:33]} 8. Nbd2 {[%clk 00:15:46]} {[%emt 00:00:07]}
Nxd2 {[%clk 00:15:32]} {[%emt 00:00:17]} 9. Nxd2 {[%clk 00:15:53]} {[%emt
00:00:03]} g5 {[%clk 00:15:33]} {[%emt 00:00:09]} 10. Be5 {[%clk 00:15:56]}
{[%emt 00:00:06]} f6 {[%clk 00:15:32]} {[%emt 00:00:13]} 11. Bg3 {[%clk
00:16:01]} {[%emt 00:00:04]} Nc6 {[%clk 00:15:30]} {[%emt 00:00:13]} 12. Nb3
{[%clk 00:15:53]} {[%emt 00:00:18]} h5 {[%clk 00:14:37]} {[%emt 00:01:03]} 13.
h4 {[%clk 00:15:51]} {[%emt 00:00:11]} Bg4 {[%clk 00:13:50]} {[%emt 00:00:57]}
14. Qxe7+ {[%clk 00:15:55]} {[%emt 00:00:06]} Bxe7 {[%clk 00:13:58]} {[%emt
00:00:02]} 15. hxg5 {[%clk 00:16:01]} {[%emt 00:00:04]} fxg5 {[%clk 00:14:06]}
{[%emt 00:00:02]} 16. Bxc7 {[%clk 00:16:07]} {[%emt 00:00:04]} Nb4 {[%clk
00:14:03]} {[%emt 00:00:13]} 17. Bb5+ {[%clk 00:16:10]} {[%emt 00:00:07]} Bd7
{[%clk 00:14:00]} {[%emt 00:00:13]} 18. Bxd7+ {[%clk 00:16:17]} {[%emt
00:00:03]} Kxd7 {[%clk 00:14:09]} {[%emt 00:00:02]} 19. Be5 {[%clk 00:16:25]}
{[%emt 00:00:02]} Nxc2+ {[%clk 00:14:03]} {[%emt 00:00:16]} 20. Kd2 {[%clk
00:16:34]} Nxa1 {[%clk 00:14:09]} {[%emt 00:00:05]} 21. Bxh8 {[%clk 00:16:42]}
{[%emt 00:00:02]} Nxb3+ {[%clk 00:14:16]} {[%emt 00:00:03]} 22. axb3 {[%clk
00:16:50]} {[%emt 00:00:01]} Rxh8 {[%clk 00:14:25]} {[%emt 00:00:02]} 23. g4
{[%clk 00:16:55]} {[%emt 00:00:05]} h4 {[%clk 00:14:28]} {[%emt 00:00:07]} 24.
Ke3 {[%clk 00:17:00]} {[%emt 00:00:04]} Bf6 {[%clk 00:14:35]} {[%emt 00:00:03]}
25. f3 {[%clk 00:17:00]} {[%emt 00:00:10]} Re8+ {[%clk 00:14:32]} {[%emt
00:00:13]} 26. Kd3 {[%clk 00:17:08]} {[%emt 00:00:02]} Rc8 {[%clk 00:14:06]}
{[%emt 00:00:36]} 27. Re1 {[%clk 00:17:06]} {[%emt 00:00:12]} Re8 {[%clk
00:14:05]} {[%emt 00:00:13]} 28. Rc1 {[%clk 00:17:14]} {[%emt 00:00:01]} Rf8
{[%clk 00:13:37]} {[%emt 00:00:38]} 29. Rf1 {[%clk 00:17:13]} {[%emt 00:00:10]}
h3 {[%clk 00:13:37]} {[%emt 00:00:10]} 30. f4 {[%clk 00:17:11]} h2 {[%clk
00:13:36]} {[%emt 00:00:22]} 31. fxg5 {[%clk 00:17:16]} {[%emt 00:00:05]} Bxg5
{[%clk 00:13:40]} {[%emt 00:00:06]} 32. Rh1 {[%clk 00:17:22]} {[%emt 00:00:04]}
Rf2 {[%clk 00:13:42]} {[%emt 00:00:08]} 33. Kc3 {[%clk 00:17:18]} {[%emt
00:00:14]} Bf4 {[%clk 00:13:46]} {[%emt 00:00:06]} 34. Kd3 {[%clk 00:17:15]}
{[%emt 00:00:13]} Rg2 {[%clk 00:13:54]} {[%emt 00:00:01]} 35. g5 {[%clk
00:17:19]} {[%emt 00:00:06]} Rg1 {[%clk 00:14:02]} {[%emt 00:00:02]} 36. g6
{[%clk 00:17:25]} {[%emt 00:00:04]} Rxh1 {[%clk 00:14:10]} {[%emt 00:00:02]} 37.
g7 {[%clk 00:17:34]} {[%emt 00:00:01]} Rg1 {[%clk 00:14:19]} {[%emt 00:00:02]}
38. g8=Q Rxg8 39. Kc3 {[%clk 00:17:35]} {[%emt 00:00:05]} h1=Q {[%emt
00:00:04]} 40. Kb4 {[%clk 00:17:42]} {[%emt 00:00:01]} Bd2+ {[%clk 00:14:33]}
{[%emt 00:00:03]} 41. Ka4 {[%clk 00:17:52]} b5+ {[%clk 00:14:41]} {[%emt
00:00:03]} 42. Kxb5 {[%clk 00:18:00]} {[%emt 00:00:02]} Rb8+ {[%clk 00:14:49]}
{[%emt 00:00:01]} 43. Ka6 {[%clk 00:18:09]} {[%emt 00:00:01]} Qf1+ {[%clk
00:14:55]} {[%emt 00:00:03]} 44. Kxa7 {[%clk 00:18:17]} {[%emt 00:00:03]} Qb5
{[%clk 00:15:01]} {[%emt 00:00:04]} 45. b4 {[%clk 00:18:25]} {[%emt 00:00:02]}
Qb6# {[%emt 00:00:02]} 0-1

[Event "Chessity Nationale Pupillendag 2019 - Groep F"]
[Site "Meppel, Netherlands"]
[Date "2019.06.29"]
[Round "7.3"]
[White "Kurt, Sascha"]
[Black "Pereira Garza, Cecilia"]
[Result "0-1"]
[TimeControl "15 min + 10 sec"]
[WhiteElo "789"]
[BlackElo "929"]

1. e4 {[%clk 00:15:19]} e6 {[%clk 00:15:17]} {[%emt 00:00:03]} 2. d4 {[%clk
00:15:24]} {[%emt 00:00:06]} d5 {[%clk 00:15:18]} {[%emt 00:00:09]} 3. e5
{[%clk 00:15:28]} {[%emt 00:00:06]} c5 {[%clk 00:15:22]} {[%emt 00:00:06]} 4.
c3 {[%clk 00:15:33]} {[%emt 00:00:05]} Nc6 {[%clk 00:15:25]} {[%emt 00:00:06]}
5. Nf3 {[%clk 00:15:38]} {[%emt 00:00:06]} Nge7 {[%clk 00:15:04]} {[%emt
00:00:31]} 6. Bg5 {[%clk 00:15:29]} {[%emt 00:00:19]} b6 {[%clk 00:14:52]}
{[%emt 00:00:22]} 7. Bb5 {[%clk 00:15:32]} {[%emt 00:00:07]} Bb7 {[%clk
00:14:54]} {[%emt 00:00:07]} 8. Qa4 {[%clk 00:15:02]} {[%emt 00:00:41]} Qc7
{[%clk 00:14:44]} {[%emt 00:00:17]} 9. Bxe7 {[%clk 00:14:58]} {[%emt 00:00:17]}
Bxe7 {[%clk 00:14:48]} {[%emt 00:00:06]} 10. b3 {[%clk 00:14:38]} {[%emt
00:00:30]} O-O {[%clk 00:14:49]} {[%emt 00:00:08]} 11. Nbd2 {[%clk 00:14:08]}
{[%emt 00:00:41]} a6 {[%clk 00:14:40]} {[%emt 00:00:19]} 12. Bxc6 {[%clk
00:13:43]} {[%emt 00:00:35]} Bxc6 {[%clk 00:14:44]} {[%emt 00:00:05]} 13. Qa3
{[%clk 00:13:48]} {[%emt 00:00:07]} cxd4 {[%clk 00:14:38]} {[%emt 00:00:15]} 14.
Qc1 {[%clk 00:13:51]} {[%emt 00:00:07]} dxc3 {[%clk 00:14:34]} {[%emt
00:00:15]} 15. Qxc3 {[%clk 00:13:57]} {[%emt 00:00:05]} Rac8 {[%clk 00:14:33]}
{[%emt 00:00:10]} 16. O-O {[%clk 00:13:58]} {[%emt 00:00:08]} Bb5 {[%clk
00:14:34]} {[%emt 00:00:09]} 17. Qxc7 {[%clk 00:13:57]} {[%emt 00:00:12]} Rxc7
{[%clk 00:14:41]} {[%emt 00:00:02]} 18. Rfc1 {[%clk 00:14:03]} {[%emt
00:00:04]} Rfc8 {[%clk 00:14:48]} {[%emt 00:00:03]} 19. Rxc7 {[%clk 00:14:01]}
{[%emt 00:00:12]} Rxc7 {[%clk 00:14:56]} {[%emt 00:00:02]} 20. a4 {[%clk
00:14:10]} {[%emt 00:00:02]} Bd3 {[%clk 00:15:00]} {[%emt 00:00:06]} 21. Ne1
{[%clk 00:14:06]} {[%emt 00:00:14]} Bc2 {[%clk 00:15:03]} {[%emt 00:00:06]} 22.
Rc1 {[%clk 00:14:09]} {[%emt 00:00:08]} Bb4 {[%clk 00:15:00]} {[%emt 00:00:12]}
23. Ndf3 {[%clk 00:13:13]} {[%emt 00:01:06]} Rc5 {[%clk 00:13:46]} {[%emt
00:01:24]} 24. Nxc2 {[%clk 00:13:09]} {[%emt 00:00:14]} Ba3 {[%clk 00:13:50]}
{[%emt 00:00:07]} 25. b4 {[%clk 00:12:34]} {[%emt 00:00:46]} Rc3 {[%clk
00:13:43]} {[%emt 00:00:14]} 26. Rd1 {[%clk 00:11:53]} {[%emt 00:00:52]} Rxc2
{[%clk 00:13:43]} {[%emt 00:00:09]} 27. Ne1 {[%clk 00:11:59]} {[%emt 00:00:05]}
Re2 {[%clk 00:13:48]} {[%emt 00:00:06]} 28. Kf1 {[%clk 00:12:03]} {[%emt
00:00:05]} Rxe5 {[%clk 00:13:51]} {[%emt 00:00:07]} 29. Nd3 {[%clk 00:12:06]}
{[%emt 00:00:07]} Re4 {[%clk 00:13:49]} {[%emt 00:00:12]} 30. f3 {[%clk
00:11:17]} {[%emt 00:00:59]} Rd4 {[%clk 00:13:48]} {[%emt 00:00:09]} 31. Ke2
{[%clk 00:11:00]} {[%emt 00:00:28]} Bxb4 {[%clk 00:13:47]} {[%emt 00:00:11]} 32.
Nxb4 {[%clk 00:11:06]} {[%emt 00:00:05]} Rxb4 {[%clk 00:13:55]} {[%emt
00:00:02]} 33. Rc1 {[%clk 00:11:10]} {[%emt 00:00:06]} h6 {[%clk 00:13:55]}
{[%emt 00:00:11]} 34. Rc6 {[%clk 00:11:13]} {[%emt 00:00:07]} Rxa4 {[%clk
00:13:58]} {[%emt 00:00:08]} 35. Rxb6 {[%clk 00:11:22]} Ra2+ {[%clk 00:14:05]}
{[%emt 00:00:03]} 36. Kf1 {[%clk 00:11:29]} {[%emt 00:00:02]} a5 {[%clk
00:14:12]} {[%emt 00:00:03]} 37. Rb1 {[%clk 00:11:25]} {[%emt 00:00:13]} a4
{[%clk 00:14:19]} {[%emt 00:00:03]} 38. Ke1 {[%clk 00:11:34]} a3 {[%clk
00:14:26]} {[%emt 00:00:03]} 39. Kd1 {[%clk 00:11:43]} Kf8 {[%clk 00:14:29]}
{[%emt 00:00:07]} 40. Kc1 {[%clk 00:11:50]} {[%emt 00:00:03]} Ke7 {[%clk
00:14:26]} {[%emt 00:00:12]} 41. Rb3 {[%clk 00:11:59]} Ra1+ {[%clk 00:14:29]}
{[%emt 00:00:08]} 42. Kc2 {[%clk 00:12:07]} {[%emt 00:00:03]} a2 {[%clk
00:14:36]} {[%emt 00:00:03]} 43. Ra3 {[%clk 00:12:08]} {[%emt 00:00:09]} Rg1
{[%clk 00:14:30]} {[%emt 00:00:14]} 44. Ra7+ {[%clk 00:12:00]} {[%emt
00:00:21]} Kf6 {[%clk 00:14:36]} {[%emt 00:00:03]} 45. Rxa2 {[%clk 00:11:52]}
{[%emt 00:00:18]} Rxg2+ {[%clk 00:14:44]} {[%emt 00:00:02]} 46. Kb3 {[%clk
00:12:02]} {[%emt 00:00:01]} Rxa2 {[%clk 00:14:51]} {[%emt 00:00:03]} 47. Kxa2
{[%clk 00:12:11]} Kg5 {[%clk 00:14:58]} {[%emt 00:00:03]} 48. Kb2 {[%clk
00:12:20]} {[%emt 00:00:01]} Kf4 {[%clk 00:15:07]} 49. Kc2 {[%clk 00:12:29]}
Kxf3 {[%clk 00:15:16]} {[%emt 00:00:01]} 50. Kd3 {[%clk 00:12:38]} Kg2 {[%clk
00:15:23]} {[%emt 00:00:02]} 51. h4 {[%clk 00:12:47]} Kg3 {[%clk 00:15:32]}
{[%emt 00:00:03]} 52. h5 {[%clk 00:12:53]} {[%emt 00:00:04]} Kg4 {[%clk
00:15:41]} {[%emt 00:00:01]} 53. Kd4 {[%clk 00:13:02]} Kxh5 {[%clk 00:15:48]}
{[%emt 00:00:03]} 54. Ke5 {[%clk 00:13:12]} f6+ {[%clk 00:15:52]} {[%emt
00:00:06]} 55. Kxe6 {[%clk 00:13:20]} {[%emt 00:00:02]} d4 {[%clk 00:16:02]} 56.
Kf7 {[%clk 00:13:28]} {[%emt 00:00:02]} d3 {[%clk 00:16:09]} {[%emt 00:00:02]}
57. Kxg7 {[%clk 00:13:36]} {[%emt 00:00:01]} d2 {[%clk 00:16:19]} 58. Kxf6
{[%clk 00:13:44]} {[%emt 00:00:02]} d1=Q {[%clk 00:16:23]} {[%emt 00:00:04]} 59.
Kf5 {[%emt 00:00:09]} Qf3+ 60. Ke5 {[%clk 00:13:58]} {[%emt 00:00:02]} Qd3
{[%clk 00:16:36]} {[%emt 00:00:03]} 61. Kf4 {[%clk 00:14:03]} {[%emt 00:00:05]}
Qe2 {[%clk 00:16:42]} {[%emt 00:00:03]} 62. Kf5 {[%clk 00:14:11]} {[%emt
00:00:04]} Qe3 {[%clk 00:16:39]} {[%emt 00:00:13]} 63. Kf6 {[%clk 00:14:16]}
{[%emt 00:00:05]} Qe4 {[%clk 00:16:45]} {[%emt 00:00:03]} 64. Kg7 {[%clk
00:14:23]} {[%emt 00:00:03]} Qf5 {[%clk 00:16:38]} {[%emt 00:00:16]} 65. Kg8
{[%clk 00:14:30]} {[%emt 00:00:05]} Kg6 {[%clk 00:16:39]} {[%emt 00:00:06]} 66.
Kh8 {[%clk 00:14:36]} {[%emt 00:00:07]} Qc8# {[%clk 00:16:45]} {[%emt
00:00:04]} 0-1

[Event "Chessity Nationale Pupillendag 2019 - Groep F"]
[Site "Meppel, Netherlands"]
[Date "2019.06.29"]
[Round "7.4"]
[White "Speckamp, Richard"]
[Black "Sterk, Ralf"]
[Result "0-1"]
[TimeControl "15 min + 10 sec"]
[WhiteElo "662"]
[BlackElo "962"]

1. e4 {[%clk 00:15:19]} {[%emt 00:12:22]} e5 {[%clk 00:15:19]} {[%emt
00:00:01]} 2. Nf3 {[%clk 00:15:28]} {[%emt 00:00:01]} Nc6 {[%clk 00:15:27]}
{[%emt 00:00:02]} 3. Nc3 {[%clk 00:15:38]} d6 {[%clk 00:15:30]} {[%emt
00:00:07]} 4. Bc4 {[%clk 00:15:46]} {[%emt 00:00:02]} Bg4 {[%clk 00:15:36]}
{[%emt 00:00:04]} 5. h3 {[%clk 00:15:48]} {[%emt 00:00:08]} Bh5 {[%clk
00:15:44]} {[%emt 00:00:01]} 6. O-O {[%clk 00:15:54]} {[%emt 00:00:05]} Nd4
{[%clk 00:15:53]} {[%emt 00:00:01]} 7. Be2 {[%clk 00:16:00]} {[%emt 00:00:04]}
Nxe2+ {[%clk 00:15:48]} {[%emt 00:00:15]} 8. Qxe2 {[%clk 00:16:09]} {[%emt
00:00:02]} Qf6 {[%clk 00:15:55]} {[%emt 00:00:03]} 9. Nd5 {[%clk 00:16:02]}
{[%emt 00:00:17]} Qd8 {[%clk 00:16:01]} {[%emt 00:00:03]} 10. d3 {[%clk
00:16:07]} {[%emt 00:00:05]} h6 {[%clk 00:16:09]} {[%emt 00:00:03]} 11. Bd2
{[%clk 00:16:14]} {[%emt 00:00:03]} Nf6 {[%clk 00:16:16]} {[%emt 00:00:02]} 12.
Nc3 {[%clk 00:16:19]} {[%emt 00:00:05]} Be7 {[%clk 00:16:24]} {[%emt 00:00:03]}
13. Rfe1 {[%clk 00:16:23]} {[%emt 00:00:06]} Bg6 {[%clk 00:16:32]} {[%emt
00:00:02]} 14. d4 {[%clk 00:16:14]} {[%emt 00:00:19]} exd4 {[%clk 00:16:38]}
{[%emt 00:00:04]} 15. Nxd4 {[%clk 00:16:22]} {[%emt 00:00:02]} O-O {[%clk
00:16:44]} {[%emt 00:00:05]} 16. Nf5 {[%clk 00:16:01]} {[%emt 00:00:30]} Bxf5
{[%clk 00:16:39]} {[%emt 00:00:15]} 17. exf5 {[%clk 00:16:10]} {[%emt
00:00:01]} Re8 {[%clk 00:16:47]} {[%emt 00:00:02]} 18. Rab1 {[%clk 00:15:53]}
{[%emt 00:00:27]} d5 {[%clk 00:16:55]} {[%emt 00:00:02]} 19. Bf4 {[%clk
00:15:30]} {[%emt 00:00:33]} Bd6 {[%clk 00:16:58]} {[%emt 00:00:07]} 20. Qf3
{[%clk 00:15:31]} {[%emt 00:00:08]} Bxf4 {[%clk 00:16:41]} {[%emt 00:00:28]} 21.
Qxf4 {[%clk 00:15:39]} {[%emt 00:00:02]} d4 {[%clk 00:16:47]} {[%emt 00:00:03]}
22. Rxe8+ {[%clk 00:15:46]} {[%emt 00:00:04]} Nxe8 {[%clk 00:16:52]} {[%emt
00:00:05]} 23. Nb5 {[%clk 00:15:52]} {[%emt 00:00:04]} c5 {[%clk 00:16:53]}
{[%emt 00:00:09]} 24. Rd1 {[%clk 00:15:52]} {[%emt 00:00:09]} a6 {[%clk
00:17:02]} {[%emt 00:00:02]} 25. Nc3 {[%clk 00:15:57]} {[%emt 00:00:05]} Qg5
{[%clk 00:16:42]} {[%emt 00:00:30]} 26. Qxg5 {[%clk 00:16:03]} {[%emt
00:00:03]} hxg5 {[%clk 00:16:50]} {[%emt 00:00:02]} 27. Ne4 {[%clk 00:16:09]}
{[%emt 00:00:05]} f6 {[%clk 00:16:57]} {[%emt 00:00:03]} 28. Nxc5 {[%clk
00:16:14]} {[%emt 00:00:06]} b6 {[%clk 00:17:05]} {[%emt 00:00:02]} 29. Nb3
{[%clk 00:16:20]} {[%emt 00:00:03]} Nd6 {[%clk 00:17:06]} {[%emt 00:00:08]} 30.
Nxd4 {[%clk 00:16:25]} {[%emt 00:00:06]} Re8 {[%clk 00:17:13]} {[%emt
00:00:03]} 31. c3 {[%clk 00:16:23]} {[%emt 00:00:12]} Nc4 {[%clk 00:17:19]}
{[%emt 00:00:03]} 32. b3 {[%clk 00:16:31]} {[%emt 00:00:02]} Nd6 {[%clk
00:17:28]} {[%emt 00:00:01]} 33. a4 {[%clk 00:16:36]} {[%emt 00:00:05]} Rc8
{[%clk 00:17:32]} {[%emt 00:00:05]} 34. c4 {[%clk 00:16:43]} {[%emt 00:00:04]}
Rd8 {[%clk 00:17:33]} {[%emt 00:00:10]} 35. Ne6 {[%clk 00:16:31]} {[%emt
00:00:22]} Rd7 {[%clk 00:17:41]} {[%emt 00:00:02]} 36. Nd4 {[%clk 00:16:37]}
{[%emt 00:00:04]} Nxf5 {[%clk 00:17:45]} {[%emt 00:00:06]} 37. c5 {[%clk
00:16:23]} {[%emt 00:00:24]} bxc5 {[%clk 00:17:51]} {[%emt 00:00:05]} 38. Rd3
{[%clk 00:16:12]} {[%emt 00:00:21]} Nxd4 {[%clk 00:17:56]} {[%emt 00:00:04]} 39.
Kf1 {[%clk 00:16:16]} {[%emt 00:00:06]} Re7 {[%clk 00:18:02]} {[%emt 00:00:05]}
40. f3 {[%clk 00:16:22]} {[%emt 00:00:03]} Nf5 {[%clk 00:17:27]} {[%emt
00:00:45]} 41. Kf2 {[%clk 00:16:30]} {[%emt 00:00:02]} Kh7 {[%clk 00:17:30]}
{[%emt 00:00:07]} 42. g4 {[%clk 00:16:37]} {[%emt 00:00:03]} Nh6 {[%clk
00:17:34]} {[%emt 00:00:06]} 43. Kg3 {[%clk 00:16:42]} {[%emt 00:00:05]} g6
{[%clk 00:17:37]} {[%emt 00:00:07]} 44. h4 {[%clk 00:16:50]} {[%emt 00:00:02]}
gxh4+ {[%clk 00:17:42]} {[%emt 00:00:05]} 45. Kxh4 {[%clk 00:16:58]} {[%emt
00:00:01]} f5 {[%clk 00:17:24]} {[%emt 00:00:29]} 46. gxf5 {[%clk 00:16:59]}
{[%emt 00:00:08]} Nxf5+ {[%clk 00:17:31]} {[%emt 00:00:02]} 47. Kg4 {[%clk
00:17:08]} Kh6 {[%clk 00:17:33]} {[%emt 00:00:08]} 48. f4 {[%clk 00:17:15]}
{[%emt 00:00:04]} Kg7 {[%clk 00:17:01]} {[%emt 00:00:41]} 49. Rd5 {[%clk
00:17:20]} {[%emt 00:00:05]} Ne3+ {[%clk 00:17:09]} {[%emt 00:00:02]} 50. Kg5
{[%clk 00:17:22]} {[%emt 00:00:08]} Nxd5 {[%clk 00:17:17]} {[%emt 00:00:02]} 51.
f5 {[%clk 00:17:30]} {[%emt 00:00:03]} gxf5 {[%clk 00:17:24]} {[%emt 00:00:03]}
52. Kxf5 {[%clk 00:17:39]} {[%emt 00:00:01]} Re3 {[%clk 00:17:32]} {[%emt
00:00:02]} 53. b4 {[%clk 00:17:44]} {[%emt 00:00:05]} cxb4 {[%clk 00:17:40]}
{[%emt 00:00:02]} 54. a5 {[%clk 00:17:53]} b3 {[%clk 00:17:41]} {[%emt
00:00:10]} 55. Kg5 {[%clk 00:18:01]} {[%emt 00:00:02]} b2 {[%clk 00:17:49]}
{[%emt 00:00:02]} 56. Kf5 {[%clk 00:18:10]} {[%emt 00:00:01]} b1=R {[%emt
00:00:11]} 57. Kg5 {[%emt 00:00:03]} Rf1 {[%clk 00:17:39]} {[%emt 00:00:05]} 58.
Kh4 {[%clk 00:18:11]} {[%emt 00:00:08]} Rg1 {[%clk 00:17:28]} {[%emt 00:00:21]}
59. Kh5 {[%clk 00:18:16]} {[%emt 00:00:06]} Rh3# {[%clk 00:17:35]} {[%emt
00:00:02]} 0-1

[Event "Chessity Nationale Pupillendag 2019 - Groep F"]
[Site "Meppel, Netherlands"]
[Date "2019.06.29"]
[Round "7.5"]
[White "Verwer, Oscar"]
[Black "Smets, Cas"]
[Result "1-0"]
[TimeControl "15 min + 10 sec"]
[WhiteElo "864"]
[BlackElo "649"]

1. e4 {[%clk 00:15:19]} {[%emt 00:12:34]} e5 {[%clk 00:15:19]} 2. Nf3 {[%clk
00:15:28]} {[%emt 00:00:01]} Nc6 {[%clk 00:15:28]} {[%emt 00:00:01]} 3. d4
{[%clk 00:15:36]} exd4 {[%clk 00:15:33]} {[%emt 00:00:05]} 4. Bc4 {[%clk
00:15:45]} {[%emt 00:00:02]} Nf6 {[%clk 00:15:39]} {[%emt 00:00:04]} 5. e5
{[%clk 00:15:52]} {[%emt 00:00:04]} Ng4 {[%clk 00:15:42]} {[%emt 00:00:07]} 6.
O-O {[%clk 00:15:58]} {[%emt 00:00:04]} Ngxe5 {[%clk 00:15:48]} {[%emt
00:00:03]} 7. Nxe5 {[%clk 00:16:07]} {[%emt 00:00:02]} Nxe5 {[%clk 00:15:54]}
{[%emt 00:00:03]} 8. Re1 {[%clk 00:16:15]} {[%emt 00:00:02]} d6 {[%clk
00:15:42]} {[%emt 00:00:22]} 9. f4 {[%clk 00:16:24]} {[%emt 00:00:01]} f6
{[%clk 00:15:45]} {[%emt 00:00:07]} 10. fxe5 {[%clk 00:16:31]} {[%emt
00:00:04]} fxe5 {[%clk 00:15:53]} {[%emt 00:00:02]} 11. Qxd4 {[%clk 00:16:23]}
{[%emt 00:00:17]} Qf6 {[%clk 00:15:49]} {[%emt 00:00:15]} 12. Qe4 {[%clk
00:16:08]} {[%emt 00:00:23]} Be6 {[%clk 00:15:50]} {[%emt 00:00:10]} 13. Rf1
{[%clk 00:16:03]} {[%emt 00:00:16]} Qh6 {[%emt 00:00:20]} 14. Bxh6 {[%emt
00:00:10]} Bxc4 {[%clk 00:15:27]} {[%emt 00:00:03]} 15. Qxc4 {[%clk 00:16:10]}
{[%emt 00:00:03]} gxh6 {[%clk 00:15:35]} {[%emt 00:00:02]} 16. Qf7+ {[%clk
00:16:18]} {[%emt 00:00:01]} Kd8 {[%emt 00:00:03]} 17. Qf6+ {[%emt 00:00:06]}
Be7 {[%emt 00:00:02]} 18. Qxh8+ {[%emt 00:00:05]} Kd7 {[%clk 00:15:28]} {[%emt
00:00:01]} 19. Qxa8 {[%clk 00:16:22]} {[%emt 00:00:06]} h5 {[%emt 00:00:06]} 20.
Qxb7 {[%emt 00:00:04]} h4 {[%emt 00:00:02]} 21. Qb5+ {[%emt 00:00:07]} c6
{[%emt 00:00:02]} 22. Qb7+ {[%emt 00:00:01]} Ke6 23. Qc8+ {[%emt 00:00:05]} Kd5
{[%emt 00:00:04]} 24. Nc3+ {[%emt 00:00:02]} Kd4 {[%emt 00:00:01]} 25. Qg4+
{[%emt 00:00:05]} e4 {[%emt 00:00:02]} 26. Qxe4+ {[%emt 00:00:02]} Kc5 {[%emt
00:00:02]} 27. b4+ {[%emt 00:00:12]} Kb6 {[%emt 00:00:02]} 28. Qxe7 {[%emt
00:00:12]} h3 {[%clk 00:14:24]} {[%emt 00:00:02]} 29. Qd8+ {[%clk 00:16:23]}
{[%emt 00:00:08]} Ka6 {[%emt 00:00:03]} 30. Qc8+ {[%emt 00:00:14]} Kb6 {[%clk
00:14:14]} {[%emt 00:00:05]} 31. Rf7 {[%clk 00:16:17]} {[%emt 00:00:15]} c5
{[%emt 00:00:14]} 32. Qb7# {[%emt 00:00:03]} 1-0